bitfinex-derivatives/quotes_SOLF0:USTF0_20250520
["timestamp","ask_amount","ask_price","bid_price","bid_amount"]
[1747765406787,6.04137633,166.53,166.49,0.03920551]
[1747765407187,6.04147633,166.53,166.49,0.03920551]
[1747765407486,0.03887633,166.53,166.49,115.51920551]
[1747765407788,0.03887633,166.53,166.5,6.0033]
[1747765408090,0.03887633,166.53,166.49,115.51920551]
[1747765409591,0.03887633,166.53,166.52,6.0028]
[1747765410088,0.03887633,166.53,166.49,115.51920551]
[1747765410392,0.03887633,166.53,166.5,115.46]
[1747765415091,0.03887633,166.53,166.51,6.0032]
[1747765415284,0.03887633,166.53,166.5,115.46]
[1747765415593,0.03887633,166.53,166.51,6.003]
[1747765416098,0.03887633,166.53,166.5,121.4634]
[1747765416593,0.03887633,166.53,166.5,115.46]
[1747765417088,0.03887633,166.53,166.49,0.03920551]
[1747765417295,6.0035,166.5,166.49,0.03920551]
[1747765418689,6.0029,166.52,166.49,0.03920551]
[1747765418896,0.03887633,166.53,166.49,0.03920551]
[1747765419492,6.04137633,166.53,166.49,0.03920551]
[1747765419693,0.03887633,166.53,166.49,0.03920551]
[1747765420197,6.003,166.52,166.49,0.03920551]
[1747765420496,0.03887633,166.53,166.49,0.03920551]
[1747765420697,6.0029,166.52,166.49,0.03920551]
[1747765421097,0.03887633,166.53,166.49,0.03920551]
[1747765421797,0.03887633,166.53,166.5,6.0033]
[1747765422705,0.03887633,166.53,166.51,6.0032]
[1747765423295,0.03887633,166.53,166.49,0.03920551]
[1747765424798,6.0035,166.5,166.49,0.03920551]
[1747765424998,117.23887633,166.53,166.41,111.2]
[1747765425200,111.2,166.53,166.41,111.2]
[1747765425399,16.06743278,166.5,166.36,1.34855805]
[1747765425898,16.06743278,166.5,166.34,111.2]
[1747765425899,12.0079,166.49,166.34,111.2]
[1747765426091,0.04366126,166.43,166.4,0.04223324]
[1747765426498,6.0068,166.41,166.4,0.04223324]
[1747765426799,0.04366126,166.43,166.4,0.04223324]
[1747765427101,0.04366126,166.43,166.4,6.04913324]
[1747765428197,6.04976126,166.43,166.4,6.04913324]
[1747765428396,6.04976126,166.43,166.4,0.04223324]
[1747765428801,6.04976126,166.43,166.4,6.04933324]
[1747765428995,6.04976126,166.43,166.4,0.04223324]
[1747765429399,0.04366126,166.43,166.4,0.04223324]
[1747765429988,6.0068,166.41,166.4,0.04223324]
[1747765432407,6.0065,166.42,166.4,0.04223324]
[1747765432594,111.26366126,166.43,166.4,0.04223324]
[1747765433001,0.04366126,166.43,166.4,0.04223324]
[1747765433507,6.0068,166.41,166.4,0.04223324]
[1747765435004,6.05006126,166.43,166.4,0.04223324]
[1747765435203,0.04366126,166.43,166.4,0.04223324]
[1747765435602,6.0067,166.42,166.4,0.04223324]
[1747765435897,0.04366126,166.43,166.4,0.04223324]
[1747765436093,6.0068,166.41,166.4,0.04223324]
[1747765439603,6.0067,166.42,166.4,0.04223324]
[1747765439905,0.04366126,166.43,166.4,0.04223324]
[1747765440209,0.04366126,166.43,166.4,6.04923324]
[1747765440398,0.04366126,166.43,166.4,0.04223324]
[1747765441800,0.04366126,166.43,166.42,6.0065]
[1747765442704,630.06,166.52,166.46,6.0049]
[1747765442902,111.26,166.52,166.4,111.26]
[1747765443201,111.26,166.52,166.44,6.0056]
[1747765443608,111.26,166.52,166.4,111.26]
[1747765443813,0.04481953,166.5,166.46,0.03923949]
[1747765444609,6.0047,166.47,166.46,0.03923949]
[1747765446305,6.0044,166.48,166.46,0.03923949]
[1747765446802,6.0042,166.49,166.46,6.04423949]
[1747765447004,0.04481953,166.5,166.46,0.03923949]
[1747765447403,6.0047,166.47,166.46,0.03923949]
[1747765450116,6.007,166.41,166.31,16.06743278]
[1747765450307,111.24,166.47,166.3,13.03682723]
[1747765450616,111.24,166.47,166.31,111.24]
[1747765450913,6.0073,166.4,166.31,111.24]
[1747765451110,0.04573368,166.37,166.34,0.04099983]
[1747765451414,6.0058,166.44,166.31,127.30743278]
[1747765451813,6.0058,166.44,166.33,12.0192]
[1747765452014,6.0062,166.43,166.39,6.0073]
[1747765452217,0.03988854,166.43,166.39,0.04503814]
[1747765452721,6.0065,166.42,166.39,0.04503814]
[1747765453015,0.03988854,166.43,166.39,0.04503814]
[1747765453815,6.04598854,166.43,166.39,6.05233814]
[1747765456114,0.03988854,166.43,166.39,0.04503814]
[1747765456613,6.04618854,166.43,166.39,6.05233814]
[1747765457414,0.03988854,166.43,166.39,0.04503814]
[1747765457914,6.0072,166.4,166.39,0.04503814]
[1747765461919,6.0072,166.4,166.39,3.814e-05]
[1747765462112,6.0092,166.35,166.31,108.26]
[1747765462718,112.2825,166.42,166.31,108.26]
[1747765463018,0.04197963,166.38,166.35,0.04468791]
[1747765463609,6.0085,166.37,166.35,0.04468791]
[1747765463815,0.04197963,166.38,166.35,0.04468791]
[1747765464222,6.05017963,166.38,166.35,0.04468791]
[1747765464422,6.05017963,166.38,166.35,6.05368791]
[1747765464423,0.04197963,166.38,166.35,6.05368791]
[1747765464718,0.04197963,166.38,166.35,0.04468791]
[1747765464907,6.0086,166.36,166.35,0.04468791]
[1747765465915,108.28,166.37,166.25,108.28]
[1747765466620,108.28,166.37,166.28,6.0113]
[1747765466820,0.04138547,166.34,166.31,0.02374524]
[1747765467318,0.04138547,166.34,166.31,6.03394524]
[1747765467513,0.04138547,166.34,166.31,0.02374524]
[1747765468418,6.0101,166.32,166.31,0.02374524]
[1747765471817,0.04138547,166.34,166.31,0.02374524]
[1747765473120,6.05098547,166.34,166.31,0.02374524]
[1747765474025,0.04138547,166.34,166.31,0.02374524]
[1747765474725,6.0101,166.32,166.31,4.524e-05]
[1747765476428,22.16075062,166.32,166.21,1.01552723]
[1747765476622,112.92,166.31,166.21,1.01552723]
[1747765476822,6.0125,166.26,166.21,1.01552723]
[1747765477321,0.04398497,166.25,166.21,1.01552723]
[1747765477828,0.04398497,166.25,166.2,112.92]
[1747765479429,2.0881,166.33,166.2,112.92]
[1747765479631,2.0881,166.33,166.21,2.1222]
[1747765480431,0.04602828,166.29,166.26,6.012]
[1747765481231,6.0116,166.28,166.25,0.04398497]
[1747765482527,6.0121,166.27,166.25,0.04398497]
[1747765483533,6.0123,166.26,166.25,0.04398497]
[1747765485937,2.16232828,166.29,166.17,1.9666]
[1747765486127,1.9373,166.28,166.17,1.9666]
[1747765486324,1.9373,166.28,166.17,7.9821]
[1747765486734,6.0144,166.21,166.17,7.9821]
[1747765486935,0.04155832,166.21,166.09,112.96]
[1747765487230,0.04485624,166.17,166.1,2.111]
[1747765487434,6.06065624,166.17,166.1,2.111]
[1747765487736,0.04485624,166.17,166.13,6.0166]
[1747765487929,0.04485624,166.17,166.1,2.111]
[1747765488438,114.8973,166.28,166.12,0.03823601]
[1747765488640,114.8973,166.28,166.21,6.014]
[1747765489030,6.0122,166.27,166.21,6.014]
[1747765489336,0.04396668,166.26,166.22,0.03830617]
[1747765489933,6.05646668,166.26,166.22,0.03830617]
[1747765490134,0.04396668,166.26,166.22,0.03830617]
[1747765491235,0.04396668,166.26,166.25,6.0126]
[1747765493230,112.96,166.32,166.23,112.98]
[1747765493430,1.9869,166.35,166.23,112.98]
[1747765493630,6.0095,166.34,166.23,112.98]
[1747765493830,1.9869,166.35,166.3,6.0106]
[1747765494034,1.9869,166.35,166.23,112.98]
[1747765494233,0.03812406,166.31,166.27,0.04294052]
[1747765494439,0.03812406,166.31,166.3,6.0108]
[1747765494839,0.03812406,166.31,166.28,112.96]
[1747765495138,0.03812406,166.31,166.29,6.0109]
[1747765495339,0.03812406,166.31,166.28,112.96]
[1747765496038,0.03812406,166.31,166.3,6.0108]
[1747765496340,0.03812406,166.31,166.28,112.96]
[1747765496841,0.03812406,166.31,166.29,6.0109]
[1747765497438,0.03812406,166.31,166.28,118.9713]
[1747765497640,0.03812406,166.31,166.28,112.96]
[1747765498841,6.0108,166.3,166.27,0.04294052]
[1747765499347,0.03812406,166.31,166.27,0.04294052]
[1747765499845,6.0115,166.28,166.27,0.04294052]
[1747765504444,115.5437,166.3,166.17,2.0796]
[1747765504746,117.4677,166.3,166.22,6.0135]
[1747765504951,6.0127,166.25,166.22,6.0135]
[1747765505251,6.05064672,166.25,166.22,6.05462132]
[1747765505545,0.03794672,166.25,166.22,0.04112132]
[1747765507648,0.03794672,166.25,166.22,6.05482132]
[1747765507840,0.03794672,166.25,166.22,0.04112132]
[1747765508235,0.03794672,166.25,166.24,6.013]
[1747765508938,113.62,166.34,166.26,6.0119]
[1747765509139,113.62,166.34,166.22,0.04112132]
[1747765509140,113.62,166.34,166.25,113.62]
[1747765509650,1.9723,166.38,166.25,123.70312875]
[1747765509843,6.0096,166.34,166.25,123.70312875]
[1747765510150,0.04436177,166.31,166.29,6.011]
[1747765510339,0.03786218,166.32,166.28,0.03837795]
[1747765510544,0.03786218,166.32,166.28,0.04155056]
[1747765510744,0.03786218,166.32,166.28,6.05295056]
[1747765511354,6.0106,166.31,166.28,0.04155056]
[1747765511647,0.03786218,166.32,166.28,0.04155056]
[1747765511848,6.0108,166.3,166.28,0.04155056]
[1747765512254,0.03786218,166.32,166.28,0.04155056]
[1747765512549,6.0109,166.3,166.28,0.04155056]
[1747765512946,0.03786218,166.32,166.28,0.04155056]
[1747765513654,6.0105,166.31,166.28,0.04155056]
[1747765513954,0.03786218,166.32,166.28,0.04155056]
[1747765514353,113.62,166.46,166.28,6.06155056]
[1747765514545,528.94713039,166.45,166.3,16.13696433]
[1747765514749,528.94713039,166.45,166.31,117.5132]
[1747765515444,0.03915695,166.4,166.36,0.04465056]
[1747765516056,6.0083,166.37,166.36,0.04465056]
[1747765516554,0.03915695,166.4,166.36,0.04465056]
[1747765519064,0.03915695,166.4,166.39,6.0076]
[1747765519252,0.03915695,166.4,166.36,113.62465056]
[1747765520357,0.03915695,166.4,166.38,6.0077]
[1747765521663,0.03915695,166.4,166.39,6.0076]
[1747765522860,0.03915695,166.4,166.36,0.04465056]
[1747765523560,6.04645695,166.4,166.36,0.04465056]
[1747765523755,0.03915695,166.4,166.36,0.04465056]
[1747765524362,0.03915695,166.4,166.39,6.0076]
[1747765526063,119.5855,166.45,166.41,6.0068]
[1747765526257,119.5855,166.45,166.34,113.56]
[1747765526461,6.0058,166.44,166.34,113.56]
[1747765526664,6.0058,166.44,166.39,6.0072]
[1747765526967,6.0058,166.44,166.34,113.56]
[1747765527261,0.04204014,166.41,166.4,6.007]
[1747765527453,0.03913941,166.42,166.39,0.04116091]
[1747765527657,0.03913941,166.42,166.41,6.0069]
[1747765528457,113.56,166.49,166.39,113.58116091]
[1747765528663,519.46,166.53,166.4,20.35976433]
[1747765528967,111.84,166.54,166.4,105.99976433]
[1747765529460,0.04208614,166.49,166.45,0.04455615]
[1747765529664,0.04208614,166.49,166.45,111.88455615]
[1747765529860,0.04208614,166.49,166.48,6.0043]
[1747765530060,7.35553039,166.59,166.45,111.88455615]
[1747765530367,111.82,166.58,166.45,111.84]
[1747765530559,6.0017,166.56,166.45,111.84]
[1747765530764,111.82,166.58,166.45,111.84]
[1747765531267,0.03945958,166.53,166.51,6.0031]
[1747765531466,0.03945958,166.53,166.5,0.04586115]
[1747765532363,6.0032,166.51,166.5,0.04586115]
[1747765534468,0.03945958,166.53,166.5,0.04586115]
[1747765535665,6.0032,166.51,166.5,0.04586115]
[1747765537166,121.9391,166.52,166.5,0.04586115]
[1747765537463,10.1591,166.52,166.5,0.04586115]
[1747765539669,6.0032,166.51,166.5,0.04586115]
[1747765540164,10.1591,166.52,166.5,0.04586115]
[1747765540469,2.0853,166.52,166.5,0.04586115]
[1747765540669,0.03945958,166.53,166.5,0.04586115]
[1747765540861,0.03945958,166.53,166.51,6.0029]
[1747765541168,0.03945958,166.53,166.5,0.04586115]
[1747765541371,6.04225958,166.53,166.5,0.04586115]
[1747765541666,0.03945958,166.53,166.5,0.04586115]
[1747765542170,6.04205958,166.53,166.5,6.04926115]
[1747765542372,0.03945958,166.53,166.5,6.04926115]
[1747765542774,6.04215958,166.53,166.5,6.04926115]
[1747765542970,6.04215958,166.53,166.5,0.04586115]
[1747765543473,0.03945958,166.53,166.5,0.04586115]
[1747765544075,0.03945958,166.53,166.51,6.003]
[1747765544872,116.36437914,166.61,166.52,111.76]
[1747765545578,6.0013,166.57,166.53,6.0022]
[1747765545871,0.04486886,166.57,166.53,0.04520603]
[1747765546068,0.04486886,166.57,166.56,6.0014]
[1747765547476,5.9982,166.65,166.6,5.9999]
[1747765547678,4.0209,166.68,166.57,111.74]
[1747765548074,5.9983,166.65,166.6,5.9997]
[1747765548276,5.9983,166.65,166.57,111.74]
[1747765548576,0.04225435,166.63,166.59,0.03864796]
[1747765548879,0.04225435,166.63,166.6,5.9998]
[1747765549777,0.04225435,166.63,166.59,0.03864796]
[1747765550378,0.04225435,166.63,166.61,5.9995]
[1747765552479,0.04225435,166.63,166.62,5.9993]
[1747765556882,0.04225435,166.63,166.59,0.03864796]
[1747765557980,6.04125435,166.63,166.6,6.0]
[1747765558776,5.9994,166.62,166.59,6.03884796]
[1747765560081,5.9994,166.62,166.6,6.0]
[1747765560289,6.04125435,166.63,166.6,6.0]
[1747765560586,0.04225435,166.63,166.59,0.03864796]
[1747765560780,5.9995,166.62,166.59,6.03884796]
[1747765560977,0.04225435,166.63,166.59,0.03864796]
[1747765561383,5.9999,166.61,166.59,0.03864796]
[1747765561789,6.04155435,166.63,166.59,0.03864796]
[1747765562083,0.04225435,166.63,166.59,0.03864796]
[1747765562492,0.04225435,166.63,166.59,6.03874796]
[1747765562682,0.04225435,166.63,166.59,0.03864796]
[1747765563183,0.04225435,166.63,166.6,107.24]
[1747765564690,0.04225435,166.63,166.62,5.9993]
[1747765566483,5.435e-05,166.63,166.62,5.9993]
[1747765567587,5.435e-05,166.63,166.61,5.9995]
[1747765568394,5.435e-05,166.63,166.6,107.24]
[1747765569085,5.435e-05,166.63,166.59,0.03864796]
[1747765569684,5.9999,166.61,166.59,0.03864796]
[1747765569886,5.435e-05,166.63,166.59,0.03864796]
[1747765570186,5.9997,166.61,166.59,0.03864796]
[1747765570687,5.435e-05,166.63,166.59,0.03864796]
[1747765571385,5.99925435,166.63,166.59,0.03864796]
[1747765571791,5.99925435,166.63,166.6,6.0]
[1747765571991,5.9993,166.62,166.59,0.03864796]
[1747765572191,5.435e-05,166.63,166.59,0.03864796]
[1747765572391,5.9994,166.62,166.59,0.03864796]
[1747765572891,5.9999,166.61,166.59,0.03864796]
[1747765573495,6.0,166.6,166.59,0.03864796]
[1747765573694,5.435e-05,166.63,166.54,107.22]
[1747765573695,10.04605729,166.63,166.54,107.22]
[1747765573898,117.26600294,166.63,166.54,113.2219]
[1747765574089,6.0009,166.58,166.54,107.22]
[1747765574694,6.04609403,166.58,166.54,107.25860195]
[1747765574897,6.0012,166.57,166.54,107.25860195]
[1747765575198,0.04519403,166.58,166.54,0.03860195]
[1747765575392,6.0012,166.57,166.54,0.03860195]
[1747765575592,6.0012,166.57,166.54,6.04060195]
[1747765575899,6.04609403,166.58,166.54,0.03860195]
[1747765576098,0.04519403,166.58,166.54,0.03860195]
[1747765576297,0.04519403,166.58,166.57,6.0011]
[1747765577898,0.04519403,166.58,166.56,6.0013]
[1747765580808,0.04519403,166.58,166.54,0.03860195]
[1747765581415,6.0013,166.57,166.54,6.04060195]
[1747765581917,6.0015,166.56,166.54,6.04060195]
[1747765582305,6.0015,166.56,166.54,0.03860195]
[1747765582506,6.0012,166.57,166.54,0.03860195]
[1747765582710,0.04519403,166.58,166.54,6.04060195]
[1747765583008,6.0016,166.56,166.54,6.04060195]
[1747765583314,0.04519403,166.58,166.54,0.03860195]
[1747765583613,6.0013,166.57,166.54,0.03860195]
[1747765583813,6.0013,166.57,166.54,6.04060195]
[1747765584009,0.04519403,166.58,166.54,6.04060195]
[1747765584210,0.04519403,166.58,166.54,0.03860195]
[1747765584410,0.04519403,166.58,166.54,6.04070195]
[1747765584609,0.04519403,166.58,166.54,0.03860195]
[1747765584812,0.04519403,166.58,166.56,6.0012]
[1747765585309,0.04519403,166.58,166.54,0.03860195]
[1747765585510,0.04519403,166.58,166.55,6.0016]
[1747765586008,0.04519403,166.58,166.54,0.03860195]
[1747765587119,6.0013,166.57,166.54,6.04050195]
[1747765587319,0.04519403,166.58,166.54,0.03860195]
[1747765589221,0.04519403,166.58,166.54,6.04070195]
[1747765589519,6.0013,166.57,166.54,0.03860195]
[1747765589722,6.0013,166.57,166.54,6.04060195]
[1747765590226,6.0015,166.56,166.54,0.03860195]
[1747765590414,0.04519403,166.58,166.54,0.03860195]
[1747765591121,6.0017,166.56,166.54,0.03860195]
[1747765592029,6.0018,166.55,166.54,0.03860195]
[1747765592219,104.42,166.57,166.46,107.52512723]
[1747765592721,6.0034,166.51,166.46,107.52512723]
[1747765592918,104.42,166.57,166.46,107.52512723]
[1747765593119,104.42,166.57,166.5,6.04758976]
[1747765593120,6.04804391,166.53,166.5,6.04758976]
[1747765593323,0.04534391,166.53,166.5,6.04758976]
[1747765594325,0.04534391,166.53,166.5,0.04418976]
[1747765594927,6.04804391,166.53,166.5,6.04758976]
[1747765596322,0.04534391,166.53,166.5,0.04418976]
[1747765596713,0.04534391,166.53,166.51,6.003]
[1747765597526,6.04794391,166.53,166.51,6.003]
[1747765598024,6.0031,166.52,166.5,0.04418976]
[1747765598215,0.04534391,166.53,166.5,0.04418976]
[1747765598620,6.0032,166.51,166.5,0.04418976]
[1747765598818,0.04534391,166.53,166.5,0.04418976]
[1747765599825,6.0032,166.51,166.5,0.04418976]
[1747765600424,6.0049,166.47,166.44,6.0056]
[1747765600725,10.04600294,166.51,166.42,104.44]
[1747765600921,6.0054,166.46,166.42,104.44]
[1747765601122,6.0054,166.46,166.4,1.01552723]
[1747765601327,0.03829314,166.45,166.41,0.04403]
[1747765601525,6.0059,166.44,166.41,0.04403]
[1747765601717,0.03829314,166.45,166.41,0.04403]
[1747765603427,0.03829314,166.45,166.43,6.0061]
[1747765603832,0.03829314,166.45,166.41,0.04403]
[1747765604819,0.03829314,166.45,166.42,6.0064]
[1747765605121,0.03829314,166.45,166.41,0.04403]
[1747765605425,0.03829314,166.45,166.43,6.0058]
[1747765605618,0.03829314,166.45,166.41,0.04403]
[1747765606122,0.03829314,166.45,166.44,6.0058]
[1747765611630,104.46,166.51,166.48,6.004]
[1747765612630,104.50317287,166.51,166.48,0.03870027]
[1747765613728,6.0039,166.5,166.48,0.03870027]
[1747765614230,104.50317287,166.51,166.48,0.03870027]
[1747765614429,6.004,166.49,166.48,0.03870027]
[1747765615031,6.005,166.47,166.39,104.48]
[1747765615529,6.005,166.47,166.44,6.0056]
[1747765615728,104.46,166.51,166.37,11.06153017]
[1747765615926,10.04600294,166.5,166.42,6.0062]
[1747765616233,0.04530046,166.48,166.44,0.04218656]
[1747765616429,0.04530046,166.48,166.44,6.04758656]
[1747765617235,6.0049,166.47,166.44,6.04758656]
[1747765617430,0.04530046,166.48,166.44,6.04758656]
[1747765617832,6.0048,166.47,166.44,6.04758656]
[1747765618533,6.0051,166.46,166.44,6.04758656]
[1747765618937,0.04530046,166.48,166.44,6.04758656]
[1747765619436,0.04530046,166.48,166.44,0.04218656]
[1747765619734,6.0053,166.46,166.44,0.04218656]
[1747765619932,0.04530046,166.48,166.44,0.04218656]
[1747765620137,102.36,166.47,166.44,0.04218656]
[1747765620335,6.0054,166.45,166.44,0.04218656]
[1747765620832,6.0,166.45,166.36,1.01552723]
[1747765621026,10.04600294,166.43,166.36,1.01552723]
[1747765621336,6.0083,166.37,166.36,1.01552723]
[1747765621532,102.36,166.38,166.33,1.34855805]
[1747765621730,0.04445139,166.37,166.34,0.04209522]
[1747765621929,6.009,166.35,166.34,0.04209522]
[1747765623433,0.04445139,166.37,166.34,0.04209522]
[1747765624141,0.04445139,166.37,166.36,6.0087]
[1747765624841,102.4,166.42,166.35,10.04600294]
[1747765625033,108.4053,166.46,166.35,10.04600294]
[1747765625336,108.4053,166.46,166.41,6.0066]
[1747765625539,102.4,166.46,166.36,2.0628]
[1747765625737,102.4,166.46,166.37,102.4]
[1747765625940,102.4,166.46,166.39,0.04378003]
[1747765625941,0.03884901,166.43,166.39,0.04378003]
[1747765626239,0.03884901,166.43,166.42,6.0065]
[1747765633834,0.03884901,166.43,166.39,0.04378003]
[1747765634344,0.03884901,166.43,166.4,6.007]
[1747765634546,0.03884901,166.43,166.39,0.04378003]
[1747765634745,6.0067,166.42,166.39,0.04378003]
[1747765635041,0.03884901,166.43,166.39,0.04378003]
[1747765635442,6.0068,166.42,166.39,6.05128003]
[1747765635642,0.03884901,166.43,166.39,0.04378003]
[1747765636737,0.03884901,166.43,166.39,6.05138003]
[1747765636939,0.03884901,166.43,166.39,0.04378003]
[1747765637145,6.04524901,166.43,166.4,6.0072]
[1747765637348,0.03884901,166.43,166.39,0.04378003]
[1747765637842,6.0067,166.42,166.39,6.05118003]
[1747765638346,6.0067,166.42,166.4,6.0072]
[1747765638546,6.0067,166.42,166.39,0.04378003]
[1747765638746,6.0069,166.41,166.39,0.04378003]
[1747765638945,0.03884901,166.43,166.39,0.04378003]
[1747765639240,102.4,166.42,166.39,0.04378003]
[1747765639443,6.0072,166.4,166.39,0.04378003]
[1747765640346,6.007,166.41,166.39,0.04378003]
[1747765640952,102.4,166.42,166.39,0.04378003]
[1747765641246,0.03884901,166.43,166.39,0.04378003]
[1747765643256,0.03884901,166.43,166.41,6.0066]
[1747765643956,0.03884901,166.43,166.42,6.0065]
[1747765646656,0.03884901,166.43,166.39,0.04378003]
[1747765646657,6.04524901,166.43,166.39,0.04378003]
[1747765647051,0.03884901,166.43,166.4,6.007]
[1747765647959,0.03884901,166.43,166.39,6.05118003]
[1747765648162,0.03884901,166.43,166.39,0.04378003]
[1747765649259,6.0069,166.41,166.39,0.04378003]
[1747765649462,0.03884901,166.43,166.39,0.04378003]
[1747765649855,6.0071,166.41,166.39,0.04378003]
[1747765650257,109.2266,166.42,166.39,0.04378003]
[1747765651161,6.0072,166.41,166.39,0.04378003]
[1747765651972,103.22,166.42,166.39,0.04378003]
[1747765652473,109.2267,166.42,166.39,0.04378003]
[1747765652873,6.007,166.41,166.39,0.04378003]
[1747765653275,103.22,166.42,166.39,0.04378003]
[1747765653573,6.0072,166.4,166.39,0.04378003]
[1747765656575,6.007,166.41,166.39,0.04378003]
[1747765656779,103.22,166.42,166.39,0.04378003]
[1747765657078,103.22,166.42,166.39,6.05108003]
[1747765657469,103.22,166.42,166.39,0.04378003]
[1747765658180,6.0071,166.41,166.39,0.04378003]
[1747765658477,103.22,166.42,166.39,0.04378003]
[1747765658677,6.0072,166.4,166.39,0.04378003]
[1747765660970,103.22,166.42,166.31,1.9197]
[1747765661273,103.22,166.42,166.29,103.24]
[1747765661469,6.009,166.36,166.32,6.01]
[1747765661676,103.22,166.42,166.32,6.01]
[1747765661876,0.04298787,166.39,166.35,0.0411764]
[1747765662077,6.0089,166.36,166.35,0.0411764]
[1747765662673,6.0084,166.37,166.35,0.0411764]
[1747765663081,0.04298787,166.39,166.35,0.0411764]
[1747765663273,6.0087,166.36,166.35,0.0411764]
[1747765663473,0.04298787,166.39,166.35,0.0411764]
[1747765663775,6.008,166.38,166.35,6.0499764]
[1747765664378,6.05068787,166.39,166.35,6.0499764]
[1747765664578,6.05068787,166.39,166.36,6.0086]
[1747765665285,0.04298787,166.39,166.35,0.0411764]
[1747765666071,0.04298787,166.39,166.38,6.0079]
[1747765667572,0.04298787,166.39,166.35,0.0411764]
[1747765668083,0.04298787,166.39,166.36,6.0084]
[1747765668686,0.04298787,166.39,166.35,0.0411764]
[1747765668878,103.26,166.38,166.35,0.0411764]
[1747765670185,6.0086,166.36,166.35,0.0411764]
[1747765675788,0.04298787,166.39,166.35,0.0411764]
[1747765676493,0.04298787,166.39,166.38,6.0079]
[1747765677806,0.04298787,166.39,166.35,2.1395764]
[1747765678693,0.04298787,166.39,166.35,0.0411764]
[1747765678896,101.20298787,166.39,166.35,0.0411764]
[1747765679291,6.0087,166.36,166.35,0.0411764]
[1747765680692,10.08397382,166.38,166.25,101.14]
[1747765680997,14.24427382,166.38,166.25,101.14]
[1747765681198,6.0107,166.31,166.27,6.0118]
[1747765681685,6.04927648,166.31,166.27,6.05731179]
[1747765681889,6.04927648,166.31,166.28,6.0115]
[1747765682098,0.03857648,166.31,166.28,6.0115]
[1747765682296,0.03857648,166.31,166.3,6.0108]
[1747765682494,2.0031,166.37,166.27,0.04551179]
[1747765682694,103.2186,166.38,166.26,10.08397382]
[1747765683695,6.05332694,166.34,166.3,0.03831681]
[1747765683896,6.05332694,166.34,166.31,6.0103]
[1747765684099,0.04382694,166.34,166.31,6.0103]
[1747765684401,0.04382694,166.34,166.3,0.03831681]
[1747765685101,6.05332694,166.34,166.31,6.0103]
[1747765685699,6.05332694,166.34,166.3,6.04901681]
[1747765685897,0.04382694,166.34,166.3,0.03831681]
[1747765686498,101.20382694,166.34,166.3,0.03831681]
[1747765687603,6.0105,166.31,166.3,0.03831681]
[1747765690199,107.21352694,166.34,166.3,0.03831681]
[1747765690406,0.04382694,166.34,166.3,0.03831681]
[1747765691001,0.04382694,166.34,166.31,6.0104]
[1747765691505,0.04382694,166.34,166.3,0.03831681]
[1747765692107,0.04382694,166.34,166.31,6.0102]
[1747765692311,0.04382694,166.34,166.3,0.03831681]
[1747765693710,6.0105,166.31,166.3,0.03831681]
[1747765694811,6.0102,166.32,166.3,0.03831681]
[1747765695812,0.04382694,166.34,166.3,0.03831681]
[1747765696203,0.04382694,166.34,166.3,2.03911681]
[1747765696403,0.04382694,166.34,166.31,6.0102]
[1747765696710,0.04382694,166.34,166.3,3.98911681]
[1747765697313,6.05332694,166.34,166.3,3.98911681]
[1747765697710,0.04382694,166.34,166.3,3.98911681]
[1747765698512,0.04382694,166.34,166.33,6.0097]
[1747765700011,0.04382694,166.34,166.3,3.98911681]
[1747765700211,0.04382694,166.34,166.3,2.03911681]
[1747765700715,0.04382694,166.34,166.3,0.03831681]
[1747765701306,6.05322694,166.34,166.3,6.04901681]
[1747765701512,0.04382694,166.34,166.3,0.03831681]
[1747765701817,6.0105,166.31,166.3,0.03831681]
[1747765704218,2.02822694,166.34,166.24,103.1666]
[1747765704219,6.0123,166.26,166.24,103.1666]
[1747765704405,1.9844,166.34,166.24,2.0066]
[1747765704611,101.16,166.33,166.22,1.01795378]
[1747765705015,113.1797,166.33,166.22,1.01795378]
[1747765705215,0.04067798,166.29,166.26,0.04352412]
[1747765705419,6.0121,166.27,166.26,0.04352412]
[1747765705722,0.04067798,166.29,166.26,0.04352412]
[1747765705921,6.0116,166.28,166.26,0.04352412]
[1747765707519,6.0119,166.27,166.26,0.04352412]
[1747765709732,6.0137,166.22,166.18,4.0289]
[1747765709935,100.94,166.25,166.17,102.19795378]
[1747765710130,100.94,166.25,166.17,108.21335378]
[1747765710528,6.0145,166.2,166.17,108.21335378]